bitfinex/quotes_SOLUSD_20240809
["timestamp","ask_amount","ask_price","bid_price","bid_amount"]
[1723217618027,1.63120428,153.29,153.26,6.5245]
[1723217618223,36.82,153.28,153.27,0.12549]
[1723217618447,36.82,153.28,153.25,0.12549]
[1723217618625,36.82,153.3,153.25,45.50196]
[1723217618821,36.82,153.32,153.28,6.5236]
[1723217619051,20.0,153.31,153.29,0.25098]
[1723217619233,20.0,153.31,153.26,0.12549]
[1723217619849,20.0,153.31,153.27,6.5243]
[1723217620040,20.0,153.31,153.28,0.25098]
[1723217621449,20.0,153.31,153.24,15.1374]
[1723217621450,56.82,153.31,153.27,6.5244]
[1723217621744,56.82,153.31,153.28,0.12549]
[1723217622536,63.3427,153.31,153.28,0.12549]
[1723217622843,56.82,153.31,153.27,0.37647]
[1723217623031,6.5223,153.32,153.27,0.37647]
[1723217623345,44.9737591,153.31,153.27,0.37647]
[1723217623829,36.82,153.33,153.28,0.12549]
[1723217624230,20.0,153.32,153.28,0.12549]
[1723217624644,20.0,153.32,153.28,6.64939]
[1723217624825,20.0,153.32,153.29,0.12549]
[1723217625240,38.45097583,153.31,153.29,0.12549]
[1723217625436,38.45097583,153.31,153.28,0.12549]
[1723217625645,44.97377583,153.31,153.28,0.12549]
[1723217626451,36.82,153.31,153.28,0.25098]
[1723217626642,20.0,153.32,153.29,6.5234]
[1723217626956,6.5215,153.34,153.29,6.5234]
[1723217626957,36.82,153.35,153.3,6.89927]
[1723217627159,43.341,153.35,153.31,0.12549]
[1723217627328,36.82,153.35,153.31,6.64809]
[1723217627523,43.341,153.35,153.31,6.64809]
[1723217627731,43.341,153.35,153.32,0.12549]
[1723217627927,43.341,153.35,153.31,0.12549]
[1723217629136,36.82,153.33,153.3,0.12549]
[1723217629461,36.82,153.31,153.24,15.1374]
[1723217629753,36.82,153.36,153.24,15.1374]
[1723217629754,6.5245,153.27,153.24,15.1374]
[1723217629968,1.6313923,153.26,153.24,15.1374]
[1723217630256,1.6313923,153.26,153.22,12.8234]
[1723217630257,6.526,153.24,153.22,6.297]
[1723217630459,1.63180565,153.25,153.22,6.297]
[1723217630655,21.63180565,153.25,153.22,6.297]
[1723217631358,6.5261,153.23,153.22,6.297]
[1723217631524,6.5261,153.23,153.19,22.5929]
[1723217631525,8.1578802,153.23,153.19,22.5929]
[1723217631959,1.6317802,153.23,153.2,6.5272]
[1723217632138,36.82,153.26,153.19,16.0651]
[1723217632340,36.82,153.26,153.22,6.5265]
[1723217632753,6.5244,153.28,153.24,0.12549]
[1723217632754,36.82,153.28,153.24,0.12549]
[1723217632948,43.344,153.28,153.24,0.25098]
[1723217633236,1.63142061,153.27,153.24,0.37647]
[1723217633455,36.82,153.28,153.24,6.90197]
[1723217633636,1.6314618,153.27,153.24,0.25098]
[1723217634158,8.1558618,153.27,153.24,0.25098]
[1723217634350,36.82,153.28,153.24,0.25098]
[1723217634755,36.82,153.3,153.26,0.12549]
[1723217634953,43.3426,153.32,153.27,6.5243]
[1723217635257,6.5227,153.31,153.28,0.12549]
[1723217635440,43.3423,153.32,153.28,0.12549]
[1723217635842,6.5235,153.29,153.28,0.12549]
[1723217636061,6.524,153.28,153.27,0.12549]
[1723217636269,6.524,153.28,153.24,0.12549]
[1723217636270,36.82,153.28,153.24,0.12549]
[1723217636440,32.6098,153.33,153.23,0.12549]
[1723217636441,43.3451,153.26,153.23,0.12549]
[1723217636636,6.5257,153.24,153.23,0.12549]
[1723217636841,43.3457,153.24,153.19,22.5926]
[1723217637061,1.63174587,153.23,153.19,22.5926]
[1723217637260,36.82,153.24,153.2,6.5273]
[1723217637548,36.82,153.28,153.19,16.0651]
[1723217637549,6.5242,153.28,153.23,6.526]
[1723217637749,6.5242,153.28,153.24,6.5257]
[1723217637750,36.82,153.28,153.24,6.5257]
[1723217637971,36.82,153.28,153.19,16.0651]
[1723217638280,38.45132869,153.28,153.25,6.5252]
[1723217638448,43.3432,153.3,153.25,6.5252]
[1723217638640,8.15483041,153.29,153.26,0.12549]
[1723217638952,8.15483041,153.29,153.25,0.50196]
[1723217639350,8.15483041,153.29,153.25,7.02716]
[1723217639753,8.15483041,153.29,153.25,0.50196]
[1723217640065,36.82,153.28,153.21,0.12549]
[1723217640259,36.82,153.28,153.19,16.0651]
[1723217640260,36.82,153.26,153.19,16.0651]
[1723217640566,1.63172507,153.25,153.19,16.0651]
[1723217640868,1.63172507,153.25,153.15,15.8259]
[1723217640869,36.82,153.2,153.15,15.8259]
[1723217641045,43.3483,153.18,153.15,15.8259]
[1723217641367,43.3483,153.18,153.13,12.7502]
[1723217641368,8.16142883,153.17,153.13,6.2199]
[1723217641744,36.82,153.16,153.13,6.2199]
[1723217641964,1.63262584,153.15,153.11,15.8259]
[1723217642373,43.3502,153.14,153.09,6.4145]
[1723217642562,8.16333612,153.13,153.09,6.4145]
[1723217642943,1.63293612,153.13,153.09,6.4145]
[1723217643642,1.63293612,153.13,153.09,12.9464]
[1723217643851,1.63293612,153.13,153.07,22.3656]
[1723217643852,43.3509,153.12,153.07,22.3656]
[1723217644063,1.63322127,153.11,153.07,15.8328]
[1723217644271,1.63324268,153.1,153.07,15.8328]
[1723217644567,1.63324268,153.1,153.07,6.5328]
[1723217644873,43.3509,153.12,153.08,6.5324]
[1723217644874,36.82,153.12,153.08,6.5324]
[1723217645779,36.82,153.14,153.05,6.41]
[1723217645971,36.82,153.14,153.1,6.5312]
[1723217646178,6.5313,153.11,153.06,6.5329]
[1723217646352,1.63327256,153.1,153.06,6.5329]
[1723217646750,1.63327256,153.1,153.07,0.12549]
[1723217647574,1.63327256,153.1,153.07,6.65839]
[1723217647869,36.82,153.14,153.08,0.25098]
[1723217648174,20.0,153.13,153.1,6.5315]
[1723217648347,36.82,153.16,153.11,6.78218]
[1723217648552,6.5296,153.15,153.11,0.12549]
[1723217648757,36.82,153.16,153.11,0.12549]
[1723217648965,36.82,153.18,153.11,0.25098]
[1723217649145,259.2,153.21,153.15,6.5294]
[1723217649146,43.3477,153.2,153.15,6.5294]
[1723217649350,36.82,153.2,153.16,0.12549]
[1723217649570,36.82,153.2,153.15,0.25098]
[1723217649768,6.5279,153.19,153.16,0.12549]
[1723217649954,36.82,153.18,153.14,6.38089]
[1723217650162,43.3483,153.18,153.14,6.38089]
[1723217650564,43.3483,153.18,153.14,0.12549]
[1723217650880,6.5286,153.17,153.14,0.12549]
[1723217651067,43.3491,153.16,153.13,0.12549]
[1723217651266,44.9817385,153.16,153.11,6.65669]
[1723217651455,36.82,153.16,153.12,6.90717]
[1723217652054,44.98176787,153.16,153.12,0.37647]
[1723217652285,38.45266787,153.16,153.12,6.90727]
[1723217652459,38.45265086,153.16,153.12,6.90727]
[1723217652775,36.82,153.16,153.12,6.90727]
[1723217652969,44.98175179,153.16,153.12,0.37647]
[1723217653277,38.45265179,153.16,153.12,0.37647]
[1723217653478,36.82,153.16,153.12,6.90717]
[1723217654572,38.45265039,153.16,153.12,0.25098]
[1723217654772,36.82,153.16,153.12,0.25098]
[1723217654980,1.63269568,153.15,153.12,0.25098]
[1723217655159,1.63269568,153.15,153.12,0.12549]
[1723217655355,36.82,153.16,153.12,6.78168]
[1723217655576,6.5278,153.19,153.14,6.5296]
[1723217655781,6.5278,153.19,153.13,0.12549]
[1723217655782,6.81949296,153.21,153.17,6.5286]
[1723217656089,43.3466,153.22,153.17,6.5286]
[1723217656268,36.82,153.24,153.18,0.25098]
[1723217656478,36.82,153.22,153.18,0.12549]
[1723217657160,6.5274,153.2,153.18,0.12549]
[1723217657360,8.16017308,153.19,153.15,0.12549]
[1723217657565,8.16017308,153.19,153.15,0.50196]
[1723217657775,36.82,153.22,153.15,45.50196]
[1723217658370,6.5261,153.23,153.17,0.12549]
[1723217658668,8.15859031,153.22,153.17,7.03056]
[1723217658864,8.15859031,153.22,153.17,0.12549]
[1723217658865,6.5282,153.18,153.17,0.12549]
[1723217659172,6.5282,153.18,153.13,6.5302]
[1723217659672,8.16100749,153.17,153.13,6.5302]
[1723217659982,6.5279,153.19,153.14,6.5299]
[1723217660288,43.3475,153.2,153.15,6.65489]
[1723217660466,43.3475,153.2,153.16,0.25098]
[1723217660668,6.5278,153.19,153.16,0.25098]
[1723217660970,1.6322888,153.18,153.14,0.12549]
[1723217661273,1.6322888,153.18,153.09,36.82]
[1723217661274,44.9805888,153.18,153.13,6.5301]
[1723217661474,36.82,153.18,153.15,6.5294]
[1723217661685,36.82,153.18,153.13,6.53]
[1723217661979,6.5292,153.16,153.11,6.5311]
[1723217662287,1.6326772,153.17,153.08,16.0261]
[1723217662491,38.45241938,153.2,153.11,45.0]
[1723217662677,36.82,153.2,153.11,45.0]
[1723217663085,36.82,153.2,153.14,0.12549]
[1723217663273,1.63229367,153.19,153.12,0.12549]
[1723217663474,36.82,153.18,153.13,6.5302]
[1723217663784,36.82,153.2,153.15,0.12549]
[1723217664085,20.0,153.19,153.15,6.65499]
[1723217664293,43.3477,153.2,153.16,0.12549]
[1723217664470,6.5278,153.19,153.16,0.12549]
[1723217664670,6.5278,153.19,153.15,6.65499]
[1723217664973,43.3474,153.2,153.16,0.25098]
[1723217665186,6.5278,153.19,153.16,0.25098]
[1723217665586,43.3475,153.2,153.16,0.25098]
[1723217665891,6.5279,153.19,153.16,0.25098]
[1723217666087,43.3475,153.2,153.16,0.12549]
[1723217666292,36.82,153.2,153.11,45.0]
[1723217666497,36.82,153.2,153.12,0.37647]
[1723217666793,43.3475,153.2,153.12,0.37647]
[1723217666999,36.82,153.22,153.12,1.68229483]
[1723217667303,36.82,153.22,153.18,6.528]
[1723217667475,36.82,153.26,153.21,6.5269]
[1723217667793,6.81721256,153.26,153.22,6.77748]
[1723217668095,6.81721256,153.26,153.23,1.43071826]
[1723217668316,6.5228,153.31,153.26,6.5246]
[1723217668474,43.59748,153.32,153.26,0.12549]
[1723217668798,6.5231,153.3,153.26,0.50196]
[1723217669375,36.82,153.3,153.26,0.12549]
[1723217669590,6.5237,153.29,153.26,0.25098]
[1723217669798,6.524,153.28,153.26,0.12549]
[1723217670023,36.82,153.3,153.26,0.12549]
[1723217670218,36.82,153.3,153.25,0.37647]
[1723217670522,36.82,153.3,153.26,0.12549]
[1723217670695,36.82,153.3,153.26,0.25098]
[1723217670889,44.97432319,153.3,153.27,0.25098]
[1723217671097,36.82,153.3,153.22,45.0]
[1723217671394,6.5236,153.29,153.24,6.65109]
[1723217671610,6.5236,153.29,153.25,45.37647]
[1723217674014,43.3432,153.3,153.25,51.90167]
[1723217674324,43.3432,153.3,153.25,6.90167]
[1723217674502,43.3432,153.3,153.25,0.37647]
[1723217674503,36.82,153.3,153.25,0.37647]
[1723217674701,43.3441,153.28,153.25,0.25098]
[1723217674902,6.5237,153.29,153.25,0.25098]
[1723217675097,6.5241,153.28,153.25,0.25098]
[1723217675295,6.5236,153.29,153.25,0.25098]
[1723217675498,6.524,153.28,153.25,0.25098]
[1723217675833,36.82,153.3,153.25,0.25098]
[1723217676006,6.524,153.28,153.25,0.25098]
[1723217676211,36.82,153.26,153.18,6.2083]
[1723217676726,36.82,153.26,153.22,6.5263]
[1723217676923,6.5247,153.27,153.22,6.5263]
[1723217677523,36.82,153.28,153.24,6.5256]
[1723217677703,36.82,153.28,153.18,7.51345615]
[1723217677704,43.344,153.28,153.23,6.526]
[1723217678022,43.344,153.28,153.24,0.25098]
[1723217678230,36.82,153.3,153.24,0.25098]
[1723217678600,20.0,153.29,153.25,0.12549]
[1723217678831,20.0,153.29,153.25,0.25098]
[1723217679124,26.5236,153.29,153.26,0.25098]
[1723217679423,6.5236,153.29,153.27,0.12549]
[1723217679729,36.82,153.3,153.26,0.12549]
[1723217680023,36.82,153.3,153.26,52.02666]
[1723217680199,36.82,153.3,153.26,45.50196]
[1723217680397,43.3432,153.3,153.26,52.02676]
[1723217680617,36.82,153.3,153.26,52.02676]
[1723217680850,312.3218,153.36,153.29,0.12549]
[1723217680851,36.82,153.32,153.29,0.12549]
[1723217681213,6.5218,153.34,153.29,0.12549]
[1723217681214,36.82,153.34,153.29,1.43013028]
[1723217681400,36.82,153.34,153.31,6.64819]
[1723217681610,36.82,153.34,153.32,0.25098]
[1723217681809,6.5218,153.33,153.3,0.25098]
[1723217682314,6.5218,153.33,153.31,0.12549]
[1723217682727,36.82,153.34,153.3,0.12549]
[1723217683225,43.3414,153.34,153.3,0.12549]
[1723217683397,43.3414,153.34,153.31,6.64809]
[1723217683398,36.82,153.34,153.31,6.64809]
[1723217683606,43.3406,153.36,153.33,0.12549]
[1723217683799,55.5342,153.41,153.32,0.25098]
[1723217683800,43.3414,153.34,153.32,0.25098]
[1723217684025,36.82,153.34,153.32,0.25098]
[1723217684330,36.82,153.34,153.31,0.37647]
[1723217684832,6.5222,153.33,153.31,0.12549]
[1723217685010,36.82,153.32,153.29,6.5234]
[1723217685211,36.82,153.32,153.25,22.5837]
[1723217685212,38.45068527,153.32,153.25,22.5837]
[1723217685533,36.82,153.3,153.25,22.5837]
[1723217686127,36.82,153.3,153.27,6.5244]
[1723217686333,36.82,153.3,153.27,6.5243]
[1723217686826,36.82,153.3,153.28,45.50196]
[1723217687133,16.2987,153.39,153.31,6.5224]
[1723217687341,36.82,153.36,153.33,0.12549]
[1723217687826,43.3406,153.36,153.33,0.12549]
[1723217689420,6.521,153.35,153.32,45.37647]
[1723217689603,36.82,153.36,153.32,0.37647]
[1723217689800,6.521,153.35,153.32,0.37647]
[1723217690316,6.5223,153.32,153.25,22.5837]
[1723217690516,36.82,153.32,153.25,22.5837]
[1723217690903,36.82,153.32,153.28,6.5239]
[1723217691709,36.82,153.32,153.29,0.12549]
[1723217692323,36.82,153.32,153.29,0.25098]
[1723217692625,44.9730945,153.32,153.29,0.25098]
[1723217692829,36.82,153.32,153.28,51.90037]
[1723217693019,36.82,153.32,153.29,0.12549]
[1723217693420,38.45084459,153.32,153.29,0.12549]
[1723217694321,36.82,153.32,153.29,6.64889]
[1723217694530,43.3415,153.34,153.3,0.12549]
[1723217695028,43.3415,153.34,153.3,6.77408]
[1723217695331,1.63063213,153.33,153.3,0.12549]
[1723217695628,1.63063213,153.33,153.29,0.25098]
[1723217696338,6.523,153.31,153.29,0.25098]
[1723217696516,8.1539754,153.31,153.29,0.12549]
[1723217696823,36.82,153.32,153.29,0.12549]
[1723217697030,36.82,153.32,153.29,0.25098]
[1723217697227,43.3415,153.34,153.29,6.77438]
[1723217697405,36.82,153.34,153.3,6.64859]
[1723217697606,36.82,153.34,153.31,0.37647]
[1723217697912,28.63,153.33,153.31,0.37647]
[1723217699237,28.63,153.33,153.31,6.89887]
[1723217699527,6.5206,153.36,153.31,6.89887]
[1723217699528,28.63,153.34,153.31,6.89887]
[1723217699740,28.63,153.34,153.31,0.37647]
[1723217699932,28.63,153.37,153.33,6.6305]
[1723217700132,35.1498,153.38,153.34,0.37647]
[1723217700319,35.1498,153.38,153.35,0.12549]
[1723217700320,28.63,153.37,153.35,0.12549]
[1723217700720,28.63,153.36,153.33,6.6305]
[1723217701038,35.1514,153.34,153.32,0.12549]
[1723217701228,28.63,153.34,153.32,0.12549]
[1723217701540,35.1514,153.34,153.33,0.12549]
[1723217701828,35.1514,153.34,153.32,0.12549]
[1723217702028,28.63,153.34,153.32,0.12549]
[1723217702223,28.63,153.34,153.33,0.12549]
[1723217703027,28.63,153.34,153.32,0.37647]
[1723217703433,1.63068634,153.33,153.28,21.7387]
[1723217703633,28.63,153.3,153.28,21.7387]
[1723217703847,28.63,153.3,153.28,28.2626]
[1723217704015,6.5226,153.32,153.28,21.7387]
[1723217704016,28.63,153.32,153.28,21.7387]
[1723217704423,28.63,153.32,153.28,28.2626]
[1723217704621,30.26091494,153.32,153.28,28.2626]
[1723217704833,28.63,153.3,153.28,28.2626]
[1723217705022,28.63,153.3,153.29,0.12549]
[1723217705227,6.5243,153.28,153.24,6.4161]
[1723217705420,30.26133363,153.27,153.24,6.4161]
[1723217705617,30.26133363,153.27,153.23,23.1218]
[1723217705618,28.63,153.25,153.23,16.5958]
[1723217705823,28.63,153.25,153.2,6.4161]
[1723217706039,28.63,153.25,153.22,6.5264]
[1723217707019,28.63,153.25,153.2,6.4161]
[1723217707232,28.63,153.29,153.25,6.5249]
[1723217707544,28.63,153.29,153.26,6.64989]
[1723217707718,1.63113606,153.3,153.27,0.25098]
[1723217707920,43.3428,153.31,153.28,0.12549]
[1723217708140,1.63113218,153.3,153.28,0.12549]
[1723217708328,8.15433218,153.3,153.28,0.12549]
[1723217708520,43.3428,153.31,153.28,0.12549]
[1723217709448,6.5231,153.3,153.27,0.37647]
[1723217710016,36.82,153.31,153.27,0.37647]
[1723217710215,36.82,153.35,153.28,13.30299]
[1723217710439,6.5221,153.33,153.3,0.12549]
[1723217710647,1.63075359,153.32,153.29,0.25098]
[1723217710943,6.5231,153.3,153.29,0.12549]
[1723217711323,6.5228,153.31,153.29,0.12549]
[1723217711727,6.5224,153.32,153.29,0.12549]
[1723217711923,6.5214,153.34,153.29,6.5231]
[1723217712123,36.82,153.37,153.3,0.37647]
[1723217712330,36.82,153.35,153.3,0.12549]
[1723217712530,6.5219,153.33,153.3,0.12549]
[1723217712727,36.82,153.35,153.29,45.25098]
[1723217712939,36.82,153.37,153.31,0.12549]
[1723217713232,6.5194,153.39,153.34,6.5213]
[1723217713436,6.5194,153.39,153.35,0.12549]
[1723217713752,6.5194,153.39,153.35,0.37647]
[1723217714223,6.5198,153.38,153.35,0.37647]
[1723217714954,43.3394,153.39,153.35,0.37647]
[1723217715122,6.5194,153.39,153.35,0.37647]
[1723217715322,6.5198,153.38,153.35,0.37647]
[1723217715525,6.5201,153.37,153.35,0.37647]
[1723217715853,8.15097236,153.36,153.35,0.12549]
[1723217716058,8.15097236,153.36,153.33,0.12549]
[1723217716059,6.5211,153.35,153.34,0.12549]
[1723217716345,6.5211,153.35,153.29,21.937]
[1723217716346,6.5217,153.34,153.3,0.12549]
[1723217716547,1.63066623,153.33,153.3,0.12549]
[1723217716855,1.63072803,153.32,153.29,15.4135]
[1723217717038,36.82,153.33,153.29,21.9369]
[1723217717248,43.341,153.35,153.3,6.523]
[1723217717747,36.82,153.33,153.29,15.4135]
[1723217717958,6.5223,153.32,153.28,6.2917]
[1723217718329,38.45099802,153.31,153.26,6.5248]
[1723217718520,6.5248,153.26,153.24,6.0353]
[1723217718726,1.63139096,153.26,153.21,16.4709]
[1723217719329,36.82,153.27,153.21,16.4709]
[1723217719529,16.3076,153.31,153.21,22.9974]
[1723217719530,36.82,153.25,153.21,22.9974]
[1723217719737,1.63174875,153.24,153.21,22.9974]
[1723217720245,36.82,153.25,153.21,22.9974]
[1723217720246,1.63174858,153.25,153.21,16.4709]
[1723217720454,43.3465,153.23,153.17,6.5286]
[1723217720638,8.15891716,153.22,153.16,22.9848]
[1723217720953,43.3473,153.21,153.16,16.4557]
[1723217721133,36.82,153.19,153.15,12.8701]
[1723217721330,1.63233716,153.18,153.12,16.2754]
[1723217721535,43.3478,153.19,153.12,16.2754]
[1723217721536,1.63242821,153.17,153.12,16.2754]
[1723217721931,38.45242821,153.17,153.12,16.2754]
[1723217722231,6.5296,153.15,153.11,6.0395]
[1723217722436,1.63275435,153.14,153.11,6.0395]
[1723217722740,1.63272773,153.16,153.11,12.5706]
[1723217723457,1.63272773,153.16,153.11,6.0395]
[1723217723755,36.82,153.2,153.1,6.5316]
[1723217723756,38.45272771,153.15,153.1,6.5316]
[1723217723950,1.63294317,153.14,153.1,6.5316]
[1723217724654,36.82,153.15,153.11,6.531]
[1723217724859,43.3488,153.17,153.08,15.6285]
[1723217725036,20.0,153.16,153.08,15.6285]
[1723217725234,43.3504,153.13,153.08,15.6285]
[1723217725578,8.16410258,153.12,153.07,6.5329]
[1723217725934,1.63310258,153.12,153.07,6.5329]
[1723217726261,8.16400258,153.12,153.07,6.5329]
[1723217726478,8.16400258,153.12,153.06,6.5333]
[1723217726756,36.82,153.15,153.05,1.30653151]
[1723217726929,20.0,153.14,153.04,53.3426]
[1723217727327,6.5308,153.12,153.06,6.533]
[1723217727635,1.63328836,153.11,153.04,16.5226]
[1723217727832,1.63328836,153.11,153.06,6.5333]
[1723217727833,36.82,153.11,153.06,6.5333]
[1723217728061,1.6332908,153.1,153.07,0.12549]
[1723217728757,43.3521,153.09,153.03,12.6838]
[1723217729053,16.3251,153.14,153.03,6.1496]
[1723217729054,36.82,153.11,153.03,6.1496]
[1723217729256,50.16583794,153.14,153.08,6.5325]
[1723217729456,20.0,153.13,153.09,6.532]
[1723217729761,20.0,153.13,153.03,6.1496]
[1723217729762,20.0,153.13,153.07,6.5325]
[1723217729952,26.5304,153.13,153.08,0.25098]
[1723217730153,26.5304,153.13,153.09,0.25098]
[1723217730366,38.45308168,153.12,153.08,0.12549]
[1723217730559,36.82,153.1,153.03,6.1496]
[1723217730867,1.63308168,153.12,153.0,16.1502]
[1723217730868,43.3537,153.06,153.0,22.6857]
[1723217731057,1.63380627,153.05,153.0,22.6857]
[1723217731363,43.3537,153.06,153.0,22.6857]
[1723217731364,1.63380619,153.04,153.0,16.1502]
[1723217731557,8.16800619,153.04,153.0,16.1502]
[1723217731766,1.63380619,153.04,153.0,16.1502]
[1723217731935,1.63380619,153.04,153.01,6.5354]
[1723217732141,43.3529,153.08,153.02,6.5349]
[1723217732442,36.82,153.06,153.0,16.1502]
[1723217732656,16.3301,153.1,152.99,6.6209]
[1723217732657,6.5346,153.03,152.99,6.6209]
[1723217732842,1.63410549,153.02,152.99,6.6209]
[1723217733036,36.82,153.04,152.99,6.6209]
[1723217733263,36.82,153.08,153.0,6.5356]
[1723217733439,6.5343,153.04,152.99,13.1572]
[1723217733639,6.5346,153.03,152.96,15.3857]
[1723217733833,43.3543,153.04,152.96,15.3857]
[1723217734255,6.5347,153.03,152.96,15.3857]
[1723217734541,43.3542,153.04,152.98,6.5366]
[1723217735056,8.16887921,153.03,152.97,6.66259]
[1723217735258,8.16887921,153.03,152.97,6.5371]
[1723217735259,6.5348,153.03,152.97,6.5371]
[1723217735446,36.82,153.04,152.97,6.5371]
[1723217735772,6.536,153.0,152.95,12.8826]
[1723217735938,1.63453218,152.99,152.95,12.8826]
[1723217736139,36.82,153.02,152.95,6.345]
[1723217736343,20.0,153.03,152.95,6.345]
[1723217737057,20.0,153.03,152.93,0.8195369]
[1723217737058,36.82,152.98,152.93,0.8195369]
[1723217737261,38.45472598,152.98,152.94,6.5384]
[1723217737677,1.63466224,152.97,152.93,0.8195369]
[1723217738208,43.3585,152.94,152.93,0.8195369]
[1723217738347,44.99381453,152.94,152.93,0.8195369]
[1723217738540,28.17381453,152.94,152.93,0.8195369]
[1723217738880,36.82,152.94,152.93,0.8195369]
[1723217739376,56.82,152.94,152.93,0.8195369]
[1723217741073,58.45519443,152.94,152.93,0.8195369]
[1723217741376,58.45519443,152.94,152.84,15.8663]
[1723217741377,6.5398,152.91,152.84,22.4088]
[1723217741545,44.99552877,152.91,152.84,22.4088]
[1723217742052,6.5402,152.9,152.84,22.4088]
[1723217742371,44.99628341,152.89,152.83,6.0227]
[1723217742562,43.3616,152.87,152.83,6.0227]
[1723217742749,1.63586052,152.86,152.8,15.9744]
[1723217742943,36.82,152.89,152.8,15.9744]
[1723217743270,43.36,152.91,152.84,6.5426]
[1723217743574,32.89272333,152.94,152.83,6.543]
[1723217743575,36.82,152.89,152.83,6.543]
[1723217743876,36.82,152.93,152.83,36.82]
[1723217744080,6.81482333,152.94,152.85,36.82]
[1723217744374,22.3322,152.98,152.87,43.4733]
[1723217744375,36.82,152.97,152.87,43.4733]
[1723217744547,36.82,152.97,152.89,0.12549]
[1723217744752,259.2,152.99,152.92,6.5393]
[1723217744753,6.5368,152.98,152.92,6.5393]
[1723217745065,36.82,153.01,152.94,0.12549]
[1723217745455,8.17056478,153.0,152.94,6.66359]
[1723217745804,6.82169488,153.03,152.98,6.5367]
[1723217746078,7.28994037,153.07,152.98,6.5367]
[1723217746079,36.82,153.07,152.99,0.37647]
[1723217746472,6.81277861,153.08,153.0,0.12549]
[1723217746667,6.5321,153.09,153.03,0.12549]
[1723217746848,6.5321,153.09,153.05,0.12549]
[1723217746849,6.5325,153.08,153.05,0.12549]
[1723217747053,1.63367621,153.07,153.01,0.12549]
[1723217747266,6.5333,153.07,153.01,7.03736]
[1723217747470,38.45372918,153.09,153.01,7.03736]
[1723217747471,43.3523,153.09,153.03,0.12549]
[1723217747782,43.3515,153.11,153.04,0.12549]
[1723217747983,36.82,153.11,153.04,0.37647]
[1723217748159,36.82,153.11,153.04,0.12549]
[1723217748571,43.3514,153.11,153.05,6.5337]
[1723217748754,36.82,153.13,153.07,6.5329]
[1723217748954,2.54069529,153.14,153.06,0.37647]
[1723217748955,6.5317,153.1,153.06,0.25098]
[1723217749151,8.16561684,153.09,153.06,0.25098]
[1723217749762,6.5316,153.1,153.06,0.12549]
[1723217749974,36.82,153.11,153.05,6.65929]
[1723217750267,43.3512,153.11,153.06,0.25098]
[1723217750472,36.82,153.11,153.07,0.12549]
[1723217750887,43.3515,153.11,153.07,0.12549]
[1723217751177,6.5308,153.12,153.07,0.12549]
[1723217751379,6.5316,153.1,153.07,0.25098]
[1723217751575,20.0,153.11,153.07,0.12549]
[1723217751782,20.0,153.11,153.06,0.12549]
[1723217751783,1.63335366,153.1,153.06,0.25098]
[1723217752085,26.5311,153.12,153.06,0.25098]
[1723217752381,6.5316,153.1,153.06,0.25098]
[1723217752564,8.16495417,153.1,153.06,0.25098]
[1723217752957,1.63335417,153.1,153.06,0.25098]
[1723217753179,1.63335417,153.1,153.06,0.12549]
[1723217753180,6.5329,153.07,153.06,0.12549]
[1723217753477,36.82,153.11,153.04,6.65949]
[1723217753682,6.5312,153.11,153.06,0.12549]